Cogmind - Beta 11.1 @@@ ROGUE MODE // 2022.06.29 @ 16:06:16 // Winter2019/RPGLIKE Player: Demise Result: Destroyed by exploding Fusion Modulator Performance ------------- Evolutions (3) 1500 Regions Visited (4) 800 Robots Destroyed (42) 210 Value Destroyed (1370) 1370 Prototype IDs (1) 20 Alien Tech Used (0) 0 Bonus (143) 143 TOTAL SCORE: 4043 Bonus ------- High Alert Combat Kills 143 Cogmind --------- Core Integrity 0/600 Matter 300/300 Energy 280/280 System Corruption 0% Temperature Cool (36) Movement Core (50) Location -7/Factory Parts ------- > --- POWER (1) -------- Heavy Ion Engine > --- PROPULSION (1) --- (None) > --- UTILITY (4) ------ System Shield System Shield System Shield System Shield > --- WEAPON (1) ------- Mace > --- INVENTORY (2) ---- (None) Peak State ------------ > --- POWER ------------ Heavy Ion Engine > --- PROPULSION ------- (None) > --- UTILITY ---------- System Shield System Shield System Shield System Shield > --- WEAPON ----------- Mace > --- INVENTORY -------- Protomatter [Rating: 17] Favorites ----------- Power Heavy Ion Engine Engine Heavy Ion Engine Propulsion None Utility System Shield Processor Improved Targeting Computer Hackware System Shield Weapon Mace Energy Gun EM Pulse Gun Impact Weapon Mace Build | -11 -10 -9 -8 -7 ------- Run | Scr Mat Mat Mat Fac Slots Evolved 3 | . 3 . . . Power . | . . . . . Propulsion . | . . . . . Utility 3 | . 3 . . . Weapon . | . . . . . Parts Attached 12 | 1 4 4 3 . Power 1 | . . . 1 . Engine 1 | . . . 1 . Core . | . . . . . Reactor . | . . . . . Propulsion . | . . . . . Treads . | . . . . . Leg . | . . . . . Wheel . | . . . . . Hover . | . . . . . Flight . | . . . . . Utility 8 | . 4 4 . . Device . | . . . . . Storage . | . . . . . Processor 4 | . 4 . . . Hackware 4 | . . 4 . . Protection . | . . . . . Artifact . | . . . . . Weapon 3 | 1 . . 2 . Energy Gun 1 | 1 . . . . Energy Cannon . | . . . . . Ballistic Gun . | . . . . . Ballistic Cannon . | . . . . . Launcher . | . . . . . Special Weapon . | . . . . . Impact Weapon 2 | . . . 2 . Slashing Weapon . | . . . . . Piercing Weapon . | . . . . . Special Melee Weapon . | . . . . . Unidentified Prototypes 1 | . . . 1 . Parts Lost 1 | . . . 1 . Power . | . . . . . Propulsion . | . . . . . Utility . | . . . . . Weapon 1 | . . . 1 . Highest Loss Streak 1 | . . . 1 . To Critical Strikes . | . . . . . Average Slot Usage (%) 74 | . 58 70 76 85 Engine 4 | . . . 5 14 Processor 6 | . 42 7 . . Hackware 49 | . . 48 57 57 Energy Gun 7 | . 16 14 2 . Impact Weapon 7 | . . . 11 14 Naked Turns . | . . . . . Heaviest Build 10 | 2 2 2 10 10 Greatest Support 13 | 3 3 3 13 13 Greatest Overweight (x) 1 | . . . 1 . Average Overweight (x) . | . . . . . Largest Inventory Capacity 2 | . 1 2 2 2 Average Capacity 1 | . . 1 2 2 Most Carried 2 | . 1 2 2 . Average Carried . | . . 1 . . Final Capacity 2 | . 1 2 2 2 Final Carried 2 | . 1 2 . . Class Distribution -------------------- 86% | Wizard-Mutant 10% | Mutant 3% | Hacker-Mutant Dominant Class ---------------- Mutant | -10/Materials Wizard-Mutant | -9/Materials Wizard-Mutant | -8/Materials Wizard-Mutant | -7/Factory Resources | -11 -10 -9 -8 -7 ----------- Run | Scr Mat Mat Mat Fac Matter Collected 320 | 187 50 53 30 . Remotely . | . . . . . Salvage Created 1286 | . 78 287 850 71 Parts 88 | . 6 43 39 . Haulers Intercepted 6 | . 1 1 4 . Recyclers Shooed 1 | . . 1 . . Parts Field Recycled . | . . . . . Retrieved Matter . | . . . . . Parts Self-Destructed . | . . . . . Prevented . | . . . . . Kills | -11 -10 -9 -8 -7 ------- Run | Scr Mat Mat Mat Fac Combat Hostiles Destroyed 29 | . 1 9 18 1 Melee 7 | . . . 7 . Guns 12 | . 1 8 3 . AOE 1 | . . 1 . . Classes Destroyed 10 | . 2 5 3 . Worker 3 | . . 2 1 . Tunneler 1 | . . 1 . . Hauler 6 | . 1 1 4 . Recycler 1 | . . . 1 . Watcher 2 | . . 2 . . Swarmer 4 | . 1 3 . . Grunt 17 | . . 3 14 . Duelist 1 | . . . 1 . Sentry 6 | . . 3 2 1 Hunter 1 | . . . 1 . Best Kill Streak 7 | . 2 5 7 1 Combat Bots Only 5 | . 1 5 4 1 Max Kills in Single Turn 1 | . 1 1 1 1 Gunslinging . | . . . . . Exploded 1 | . . 1 . . Melee 1 | . . . 1 . Uniques/NPCs Destroyed . | . . . . . Combat | -11 -10 -9 -8 -7 -------- Run | Scr Mat Mat Mat Fac Damage Taken 1997 | . 24 281 1294 398 Core 1833 | . 18 251 1205 359 Absorbed by Shields . | . . . . . Redirected to Core 561 | . 18 108 293 142 Core Remaining (%) 88 | 100 97 100 55 . Volleys Fired 111 | . 14 62 35 . Largest 1 | . 1 1 1 . Hottest 40 | . 40 40 40 . Shots Fired 111 | . 14 62 35 . Gun 111 | . 14 62 35 . Cannon . | . . . . . Launcher . | . . . . . Special . | . . . . . Kinetic . | . . . . . Thermal . | . . . . . Explosive . | . . . . . Electromagnetic 111 | . 14 62 35 . Robot Hit Streak 12 | . 4 12 11 . Robot Miss Streak 4 | . 3 2 4 . Penetration Max . | . . . . . Secondary Targets . | . . . . . Shots Hit Robots 138 | . 5 40 87 6 Core Hits 48 | . 2 22 23 1 Critical Kills 3 | . . . 3 . Critical Parts Destroyed 10 | . . . 8 2 Critical Strikes 16 | . . 2 12 2 Corrupt 3 | . . 2 1 . Smash 13 | . . . 11 2 Melee Attacks 77 | . . . 68 9 Impact 77 | . . . 68 9 Slashing . | . . . . . Piercing . | . . . . . Sneak Attacks 8 | . . . 8 . Combat Hostiles . | . . . . . Follow-up Attacks . | . . . . . Damage Inflicted 3166 | . 69 561 2384 152 Guns 957 | . 69 521 367 . Cannons . | . . . . . Explosions 40 | . . 40 . . Melee 2169 | . . . 2017 152 Ramming . | . . . . . Kinetic . | . . . . . Thermal 40 | . . 40 . . Explosive . | . . . . . Electromagnetic 957 | . 69 521 367 . Impact 2169 | . . . 2017 152 Slashing . | . . . . . Piercing . | . . . . . Highest Corruption . | . . . . . Average Corruption . | . . . . . Corruption Purged . | . . . . . Corruption Blocked . | . . . . . Overload Shots . | . . . . . Overflow Damage 582 | . . . 529 53 Projectiles . | . . . . . Explosions . | . . . . . Melee 582 | . . . 529 53 Knockbacks 9 | . . . 9 . Impact 8 | . . . 8 . Kinetic . | . . . . . Secondary 1 | . . . 1 . Self-Inflicted Damage . | . . . . . Shots . | . . . . . Rammed 1 | . . 1 . . Targets Rammed 1 | . . 1 . . Kicked . | . . . . . Crushed . | . . . . . Highest Temperature 28 | . 15 19 28 1 Average Temperature 6 | . 12 7 6 1 Received Heat Transfer 876 | . . 102 720 54 Siege Activations . | . . . . . Robots Corrupted 1 | . . . 1 . Combat Hostiles 1 | . . . 1 . Parts Fried 12 | . . 2 9 1 Impact Corruptions 24 | . . . 22 2 Robots Melted . | . . . . . Combat Hostiles . | . . . . . Parts Melted . | . . . . . Heat Transferred . | . . . . . Parts Sabotaged . | . . . . . Parts Stolen . | . . . . . Parts Stripped . | . . . . . Power Chain Reactions 1 | . . 1 . . Missiles Intercepted . | . . . . . Alert | -11 -10 -9 -8 -7 ------- Run | Scr Mat Mat Mat Fac Peak Influence 703 | . 96 449 703 394 Initial 301 | . . 40 189 301 Average 363 | . 42 300 481 319 Maximum Alert Level 3 | . . 2 3 1 Low Security (%) 17 | 100 100 22 . . Level 1 45 | . . 61 30 100 Level 2 35 | . . 15 65 . Level 3 1 | . . . 2 . Level 4 . | . . . . . Level 5 . | . . . . . High Security . | . . . . . Max Security . | . . . . . Squads Dispatched 2 | . . 1 1 . Investigation 2 | . . 1 1 . Extermination . | . . . . . Reinforcement . | . . . . . Assault . | . . . . . Garrison . | . . . . . Intercept . | . . . . . Searches Triggered . | . . . . . Construction Impeded . | . . . . . Haulers Reinforced . | . . . . . Active Scanning Responses . | . . . . . Cargo Convoy Interrupts . | . . . . . Stealth | -11 -10 -9 -8 -7 --------- Run | Scr Mat Mat Mat Fac Distress Signals 6 | . 1 . 5 . Communications Jammed . | . . . . . Distress Signals . | . . . . . Times Spotted 49 | . 7 12 28 2 Peak Tracking Total 8 | . 8 5 7 1 Tactical Retreats 6 | . . . 6 . Traps | -11 -10 -9 -8 -7 ------- Run | Scr Mat Mat Mat Fac Traps Triggered . | . . . . . Indirectly . | . . . . . Trap Hack Attempts . | . . . . . Triggered . | . . . . . Disarmed . | . . . . . Reprogrammed . | . . . . . Reused . | . . . . . Traps Extracted . | . . . . . Installed . | . . . . . Triggered . | . . . . . Machines | -11 -10 -9 -8 -7 ---------- Run | Scr Mat Mat Mat Fac Machines Disabled 6 | . 2 3 1 . Max in Single Turn 1 | . 1 1 1 . Machines Sabotaged 1 | . . . 1 . Garrisons Compromised . | . . . . . Overloaded Fab Kills . | . . . . . Hacking | -11 -10 -9 -8 -7 --------- Run | Scr Mat Mat Mat Fac Machines Accessed 11 | . 2 5 2 2 Terminals 10 | . 2 4 2 2 Fabricators . | . . . . . Repair Stations 1 | . . 1 . . Recycling Units . | . . . . . Scanalyzers . | . . . . . Garrison Access . | . . . . . Total Hacks 46 | . 5 21 6 14 Successful 21 | . 3 11 3 4 Failed 25 | . 2 10 3 10 Catastrophic 9 | . . 3 2 4 Database Lockouts . | . . . . . Manual 43 | . 5 19 6 13 Terminals 45 | . 5 20 6 14 Fabricators . | . . . . . Repair Stations 1 | . . 1 . . Recycling Units . | . . . . . Scanalyzers . | . . . . . Garrison Access . | . . . . . Terminal Hacks 6 | . . 4 1 1 Robot Analysis 1 | . . 1 . . Level Access Points 1 | . . 1 . . Machine Index 1 | . . 1 . . Terminal Index 3 | . . 1 1 1 Fabricator Hacks . | . . . . . Repair Station Hacks . | . . . . . Recycling Unit Hacks . | . . . . . Scanalyzer . | . . . . . Garrison Access Hacks . | . . . . . Unauthorized Hacks 15 | . 3 7 2 3 Terminals 14 | . 3 6 2 3 Track 1 | . . 1 . . Botnet 9 | . 2 4 1 2 Operators 3 | . 1 1 . 1 Sabotage 1 | . . . 1 . Fabricators . | . . . . . Repair Stations 1 | . . 1 . . Mechanics 1 | . . 1 . . Recycling Units . | . . . . . Scanalyzers . | . . . . . Garrison Access . | . . . . . Data Cores Recovered . | . . . . . Used . | . . . . . Hacking Detections 7 | . 2 2 1 2 Full Trace Events . | . . . . . Feedback Events . | . . . . . Feedback Blocked . | . . . . . Robot Schematics Acquired . | . . . . . Robots Built . | . . . . . Authchips . | . . . . . Time . | . . . . . Total Robot Build Rating . | . . . . . Part Schematics Acquired . | . . . . . Parts Built . | . . . . . Authchips . | . . . . . Time . | . . . . . Total Part Build Rating . | . . . . . Parts Repaired . | . . . . . Time . | . . . . . Parts Recycled . | . . . . . Recycled Matter . | . . . . . Retrieved Matter . | . . . . . Retrieved Components . | . . . . . Parts Scanalyzed . | . . . . . Part Schematics Acquired . | . . . . . Parts Damaged . | . . . . . Bothacking | -11 -10 -9 -8 -7 ------------ Run | Scr Mat Mat Mat Fac Used RIF Installer . | . . . . . Robots Hacked . | . . . . . Non-combat . | . . . . . Combat . | . . . . . Robot Hacks Applied . | . . . . . Relay Couplers Released . | . . . . . Fabnet Peak Effective % . | . . . . . Robots Rewired . | . . . . . Allies Hacked . | . . . . . Hacks Repelled . | . . . . . Allies | -11 -10 -9 -8 -7 -------- Run | Scr Mat Mat Mat Fac Total Allies . | . . . . . Largest Group . | . . . . . Highest-Rated Group . | . . . . . Highest-Rated Ally . | . . . . . Total Orders . | . . . . . Ally Attacks . | . . . . . Total Damage . | . . . . . Kills . | . . . . . Allies Corrupted . | . . . . . Allies Melted . | . . . . . Intel | -11 -10 -9 -8 -7 ------- Run | Scr Mat Mat Mat Fac Robot Analysis Total 1 | . . 1 . . Derelict Logs Recovered . | . . . . . Drone Launches . | . . . . . Drone Recoveries . | . . . . . Exploration | -11 -10 -9 -8 -7 ------------- Run | Scr Mat Mat Mat Fac Turns Passed 1193 | 14 101 366 564 148 Spaces Moved 989 | 25 129 368 234 233 Core 989 | 25 129 368 234 233 Treads . | . . . . . Legs . | . . . . . Wheels . | . . . . . Hover . | . . . . . Flight . | . . . . . Fastest Speed 50 | 50 50 50 50 50 Average Speed 56 | 50 50 50 77 50 Slowest Speed 100 | 50 50 50 100 50 Overloaded Moves . | . . . . . Propulsion Burnouts . | . . . . . Robots Hopped . | . . . . . Cave-ins Triggered . | . . . . . Exploration Rate (%) 20 | 4 37 32 20 9 Regions Visited 4 Branch Regions . Pre-discovered Areas . | . . . . . Known Exits Taken 1 | . . 1 . . Unknown Exits Taken 3 | 1 1 . 1 . Scrap Searched . | . . . . . Spaces Dug 3 | . . . . 3 Terrain Destroyed 7 | . . 4 . 3 Melee 3 | . . . . 3 Projectile . | . . . . . AOE 4 | . . 4 . . Terrain Rammed . | . . . . . Walls Destroyed . | . . . . . Machines Disabled . | . . . . . Actions | -11 -10 -9 -8 -7 --------- Run | Scr Mat Mat Mat Fac Total 1372 | 25 148 490 461 248 Wait 114 | . 1 29 78 6 Move 985 | 24 128 367 233 233 Hop . | . . . . . Pick Up 5 | . 1 4 . . Fast Attach 10 | 1 4 4 1 . Attach 1 | . . . 1 . Detach 4 | . . 4 . . Swap 1 | . . . 1 . Drop 5 | . . 3 2 . Fire 111 | . 14 62 35 . Melee 77 | . . . 68 9 Ram 1 | . . 1 . . Kick . | . . . . . Crush . | . . . . . Escape Stasis . | . . . . . Rewire . | . . . . . Trap . | . . . . . Miscellaneous 58 | . . 16 42 . Route ------- -11/Scrapyard -10/Materials -9/Materials (discovered 3 exits: *Mat x3) -8/Materials -7/Factory History --------- Turn | Location | Event 3 | -11/Scrapyard | Discovered new exit (range 15) 15 | -11/Scrapyard | Entered Materials 37 | -10/Materials | Upgraded with Utility slot (x3) 111 | -10/Materials | Discovered new exit (range 11) 116 | -10/Materials | Entered another Materials area 118 | -9/Materials | Reached level 2 265 | -9/Materials | Identified exit to Materials 341 | -9/Materials | Reached level 3 468 | -9/Materials | Build established: Wizard-Mutant 482 | -9/Materials | Entered another Materials area 484 | -8/Materials | Reached level 4 674 | -8/Materials | Core integrity fell below 50% 688 | -8/Materials | Reached level 5 1015 | -8/Materials | Reached level 6 1019 | -8/Materials | Discovered new exit (range 9) 1046 | -8/Materials | Entered Factory 1048 | -7/Factory | Reached level 7 1182 | -7/Factory | Core integrity fell below 50% 1194 | -7/Factory | Destroyed by exploding Fusion Modulator Last Messages --------------- 01124_ Connecting with Terminal... >>Trojan(Botnet) Trojan loaded successfully. Testing... Terminal linked with 1 system. Awaiting botnet instructions. >>Index(Terminals) Found 26 terminals. Downloaded coordinate data. 01183_ Y-54 Guardian suffers critical hit (Smash). 01183_ Destroyed Imp. Deuterium Engine. 01183_ Y-54 Guardian system corrupted by crushing effect. 01190_ Y-54 Guardian misfires. 01191_ Y-54 Guardian suffers critical hit (Smash). 01191_ Destroyed Gatling Laser. 01191_ Y-54 Guardian system corrupted by crushing effect. 01192_ Y-54 Guardian system terminally corrupted. 01192_ Imp. Light Armor Plating fried. 01194_ Fusion Modulator explodes. 01194_ Power Conduit explodes. Map ----- +----------------------------------------------------+ | ???????????????????????????#### # | | ??????????????????????????????# """ """ "" # | | ??????????????????????????????# """ """ "" ## | | ??????????????????????????????# """ """ T" # | | ????????????????????????????### "" # | | ????????????????????????????# """ """ "" # | | ????????????????????????????# """ """ / | | ????????????????????????????# """ """ # | | ????????????????????????????# # | | ????????????????????????????+ # | | ????????????????????????????# ######## | | ?????????????????????####+### # # | | ?????????????????????# # # | | ?????????????????????# + # | | ?????????????????????# # # | | ?????????????????????# #! ## | | ????????????????????## # #? | | ????????????????????#; # #? | | ????????????????????#; # #? | | ???????????????????##; # ! #? | | ???????????????????# ; # +? | | ???????????????????# ; # #? | | ????????????# ####; # #? | | ?????????????? ! # #? | | ????????????????####; ;#;;###### # ! #? | | ?????????????????# %@ ###????# ######## | | ?????????????????# #??????# | | ?????????????????# #??????####"###### | | ?????????????????# #?????????###????? | | ?????????????????# #????????????????? | | ?????????????????# #????????????????? | | ?????????????????######;;;;;#####????????????????? | | ?????????????????????? ????????????????????? | | ?????????????????????? ????????????????????? | | ?????????????????????""" """" ???????????????????? | | ?????????????????????""" """" ???????????????????? | | ??????????????????????"" """" ???????????????????? | | ???????????????????????" ????? ??????????????????? | | ??????????????????????? ????? ??????????????????? | | ???????????????????????? ????????????????????????? | | ???????????????????????? ????????????????????????? | | ?????????????????????????????????????????????????? | | ?????????????????????????????????????????????????? | | ?????????????????????????????????????????????????? | | ?????????????????????????????????????????????????? | | ?????????????????????????????????????????????????? | | ?????????????????????????????????????????????????? | | ?????????????????????????????????????????????????? | | ?????????????????????????????????????????????????? | | ?????????????????????????????????????????????????? | +----------------------------------------------------+ Best States ------------- Heat Dissipation 25 Energy Generation 14 Energy Capacity 280 Matter Stores 300 Matter Capacity 300 Sight Range 16 Terrain Scan Density 10 Resistance: KI 15 Resistance: TH 15 Evasion (%) 50 Targeting Accuracy 24 Offensive Hacking 10 Defensive Hacking 50 Item Schematics ----------------- None Robot Schematics ------------------ None Fabricated ------------ Nothing Alien Tech Used ----------------- None Achievements -------------- None Challenges ------------ None RPGLIKE | -11 -10 -9 -8 -7 --------- Run | Scr Mat Mat Mat Fac Levels Raised 6 | . . 2 3 1 XP Earned 12227 | 3000 285 3118 4174 1650 XP Spent 9250 | . 2850 1900 4500 . Upgrades 22 | . 5 6 11 . Utility Slot 3 | . 3 . . . Mass Support 2 | . . . 2 . Inventory Capacity 2 | . 1 1 . . Melee Accuracy 5 | . . . 5 . Hack Attack % 2 | . . 2 . . Hack Defense % 2 | . 1 1 . . KI Resistance % 3 | . . 1 2 . TH Resistance % 3 | . . 1 2 . Protomatter Created 620 | . . 242 378 . Integrity Restored 1244 | . . 305 939 . Core 1208 | . . 269 939 . Parts 36 | . . 36 . . Protomatter Decayed 172 | . . 22 150 . Game ------ Seed ProcessingPhasingAutohacker Manual? 0 Play Time 00:19:57 Cumulative 656.4 hours Start 2022.06.29 @ 15:47:44 End 2022.06.29 @ 16:06:16 Sessions 1 Manual Loads 0 Difficulty Rogue Special Mode Winter2019/RPGLIKE Game No. 541 Rogue 541 Adventurer 0 Explorer 0 Win Type - Total 8 Types 7/0/0/1/0/0/0/0/0 Lore% 75 Gallery% 86 Achievement% 69 Wizard Run 0 Options --------- ASCII 0 Keyboard 1 Movement Numpad Keybinds 0 Fullscreen 1 Font 12/Terminus Map View 83x54 Tactical HUD 1 Map Filters NONE Filters NONE Steam 1 RUN: 71ecafcf-34be-4711-aee8-41bcb5e6c6d0